fUSD/lending_fUSD_20251014
["ID","MTS","AMOUNT","RATE_DAILY","PERIOD"]
[391188786,1760412649685,-500.0,0.00027065,2]
[391188787,1760412649695,-150.0,0.00027065,2]
[391188788,1760412649705,-150.0,0.00027065,2]
[391188789,1760412649715,-150.0,0.00027065,2]
[391188790,1760412649724,-8499.1446408,0.00027069,2]
[391188791,1760412649734,-14740.1564416,0.00027081,2]
[391188792,1760412649743,-2856.3732389,0.00027081,2]
[391188793,1760412649752,-151.0,0.00027081,7]
[391188794,1760412649762,-151.0,0.00027081,7]
[391188795,1760412649771,-151.0,0.00027081,7]
[391188796,1760412649780,-1676.5735507,0.00027097,2]
[391188797,1760412649794,-974.9999998,0.00027097,2]
[391190299,1760413509123,790.21943027,7.945e-05,2]
[391190300,1760413509145,4151.48152073,7.945e-05,2]
[391190627,1760413831466,-535.063311,0.0002295,2]
[391190628,1760413831476,-300.92,0.0002295,2]
[391190629,1760413831485,-300.72,0.00023065,2]
[391190630,1760413831494,-305.84,0.00023065,2]
[391190631,1760413831502,-305.25,0.00023065,2]
[391190632,1760413831511,-300.95,0.00023065,2]
[391190633,1760413831520,-1200.0,0.00023181,2]
[391190634,1760413831529,-300.04,0.00023182,2]
[391190635,1760413831538,-300.27,0.00023182,2]
[391190636,1760413831547,-301.76,0.00023182,2]
[391190637,1760413831560,-301.54,0.00023182,2]
[391190638,1760413831569,-301.85,0.00023299,2]
[391190639,1760413831579,-300.49,0.00023299,2]
[391190640,1760413831588,-304.61,0.00023299,2]
[391190641,1760413831597,-1959.44985072,0.00023357,120]
[391190642,1760413831609,-40.55014928,0.00023357,120]
[391190643,1760413831618,-324.83943098,0.00023391,2]
[391190644,1760413831628,-303.3,0.00023416,2]
[391190680,1760413832139,-303.81,0.00023416,2]
[391190682,1760413832150,-303.39,0.00023416,2]
[391190684,1760413832161,-2000.0,0.00023491,120]
[391190687,1760413832178,-1028.76418606,0.00023491,120]
[391190689,1760413832189,-1029.83640891,0.00023491,120]
[391190691,1760413832199,-301.32,0.00023534,2]
[391190693,1760413832208,-151.31,0.00023534,2]
[391190695,1760413832218,-303.24,0.00023534,2]
[391190697,1760413832227,-152.94,0.00023534,2]
[391190699,1760413832237,-302.93,0.00023534,2]
[391190701,1760413832249,-303.55,0.00023653,2]
[391190703,1760413832258,-151.93,0.00023653,2]
[391190705,1760413832266,-300.34,0.00023653,2]
[391190707,1760413832276,-151.15,0.00023653,2]
[391190709,1760413832285,-304.08,0.00023653,2]
[391190711,1760413832294,-150.29,0.00023653,2]
[391190713,1760413832304,-300.12,0.00023653,2]
[391190715,1760413832313,-166.66,0.00023656,30]
[391190718,1760413832324,-151.55,0.00023772,2]
[391190719,1760413832335,-303.03,0.00023772,2]
[391190722,1760413832343,-150.32,0.00023772,2]
[391190724,1760413832353,-300.05,0.00023772,2]
[391190726,1760413832363,-304.84,0.00023892,2]
[391190728,1760413832371,-151.83,0.00023892,2]
[391190730,1760413832381,-303.1,0.00023892,2]
[391190732,1760413832390,-304.73,0.00023893,2]
[391190734,1760413832399,-152.44,0.00023893,2]
[391190736,1760413832408,-151.11,0.00023893,2]
[391190738,1760413832418,-301.35,0.00023893,2]
[391190740,1760413832427,-152.78,0.00023893,2]
[391190742,1760413832437,-304.74,0.00023893,2]
[391190744,1760413832446,-274.74695666,0.00023914,2]
[391190746,1760413832455,-152.24,0.00024014,2]
[391190748,1760413832464,-305.69,0.00024025,2]
[391190750,1760413832473,-303.67,0.00024114,2]
[391190752,1760413832483,-150.54,0.00024114,2]
[391190754,1760413832492,-302.73,0.00024114,2]
[391190756,1760413832502,-152.54,0.00024114,2]
[391190758,1760413832510,-303.69,0.00024114,2]
[391190760,1760413832520,-166.66,0.00024154,30]
[391190762,1760413832529,-150.96,0.00024236,2]
[391190764,1760413832538,-152.86,0.00024236,2]
[391190766,1760413832548,-304.22,0.00024236,2]
[391190768,1760413832561,-150.37,0.00024236,2]
[391190770,1760413832571,-303.48,0.00024236,2]
[391190772,1760413832580,-304.95,0.00024252,2]
[391190774,1760413832589,-304.84,0.00024252,2]
[391190776,1760413832598,-150.98,0.00024336,2]
[391190778,1760413832608,-151.64,0.00024336,2]
[391190780,1760413832617,-150.26,0.00024336,2]
[391190782,1760413832626,-134.59144168,0.00024336,2]
[391190794,1760413832730,-16.85855832,0.00024336,2]
[391190796,1760413832739,-304.29,0.00024336,2]
[391190798,1760413832749,-150.18,0.00024336,2]
[391190801,1760413832759,-152.95,0.00024336,2]
[391190803,1760413832768,-305.23,0.00024336,2]
[391190805,1760413832778,-152.31,0.00024336,2]
[391190807,1760413832788,-151.75,0.00024336,2]
[391190809,1760413832797,-152.67,0.00024336,2]
[391190811,1760413832806,-305.22,0.00024336,2]
[391190813,1760413832816,-150.95,0.00024336,2]
[391190815,1760413832825,-303.62,0.00024336,2]
[391190817,1760413832835,-151.52,0.00024336,2]
[391190819,1760413832845,-151.93,0.00024336,2]
[391190821,1760413832854,-150.42,0.00024336,2]
[391190823,1760413832864,-305.0,0.00024336,2]
[391190825,1760413832873,-301.96,0.00024338,2]
[391190827,1760413832882,-302.0,0.00024352,2]
[391190829,1760413832892,-301.66,0.00024436,2]
[391190831,1760413832901,-150.5,0.00024436,2]
[391190833,1760413832911,-152.91,0.00024436,2]
[391190835,1760413832924,-300.78,0.00024436,2]
[391190837,1760413832934,-150.58,0.00024436,2]
[391190839,1760413832943,-610.0,0.00024553,2]
[391190841,1760413832953,-166.66,0.00024652,30]
[391190844,1760413832964,-412.120435,0.0002468,2]
[391190846,1760413832973,-500.0,0.00024932,2]
[391190848,1760413832982,-1929.142,0.00025086,9]
[391190850,1760413832992,-166.66,0.0002515,30]
[391190852,1760413833003,-241.08510865,0.00025298,2]
[391190854,1760413833013,-18859.15,0.00025305,2]
[391190856,1760413833022,-200.0,0.00025444,2]
[391190858,1760413833033,-274.74695667,0.00025446,3]
[391190860,1760413833042,-694.95,0.00025479,2]
[391190862,1760413833052,-694.95,0.00025479,2]
[391190864,1760413833064,-557.53,0.00025479,2]
[391190866,1760413833074,-660.61,0.00025495,2]
[391190868,1760413833083,-2000.0,0.00025628,120]
[391190870,1760413833093,-166.66,0.00025648,30]
[391190873,1760413833104,-277.35679052,0.00025738,2]
[391190875,1760413833113,-721.12765535,0.00025738,2]
[391190877,1760413833122,-322.6107,0.00025738,2]
[391190879,1760413833131,-250.0,0.00025738,2]
[391190881,1760413833141,-250.0,0.00025738,2]
[391190883,1760413833151,-250.0,0.00025738,2]
[391190885,1760413833161,-250.0,0.00025738,2]
[391190887,1760413833175,-250.0,0.00025738,2]
[391190889,1760413833185,-250.0,0.00025738,2]
[391190891,1760413833195,-348.24276144,0.00025738,2]
[391190893,1760413833205,-158.06,0.00025743,2]
[391190895,1760413833214,-150.09737579,0.00025758,2]
[391190897,1760413833224,-1252.67945163,0.00025758,2]
[391190899,1760413833234,-175.18110666,0.0002581,50]
[391190901,1760413833244,-163.0,0.00026,5]
[391190903,1760413833253,-160.14271033,0.00026027,2]
[391190905,1760413833262,-152.0,0.00026084,3]
[391190907,1760413833272,-160.14271033,0.00026137,2]
[391190909,1760413833281,-694.95,0.00026141,2]
[391190911,1760413833290,-694.95,0.00026141,2]
[391190913,1760413833300,-166.66,0.00026146,30]
[391190915,1760413833310,-3269.89,0.00026173,2]
[391190917,1760413833319,-150.85,0.00026189,2]
[391190919,1760413833328,-320.53811611,0.00026213,5]
[391190921,1760413833339,-175.18110666,0.00026214,51]
[391190923,1760413833348,-160.14271033,0.00026247,2]
[391190925,1760413833358,-1055.0,0.00026324,2]
[391190927,1760413833367,-300.0823788,0.00026364,2]
[391190929,1760413833377,-160.14271033,0.00026384,2]
[391190931,1760413833386,-16770.0,0.00026463,7]
[391190933,1760413833396,-160.14271033,0.00026493,2]
[391190935,1760413833405,-160.14271033,0.00026603,2]
[391190937,1760413833416,-175.18110666,0.00026617,52]
[391190940,1760413833426,-168.0,0.00026618,2]
[391190942,1760413833435,-578.0,0.00026653,7]
[391190944,1760413833444,-484.31648869,0.00026677,2]
[391190946,1760413833454,-160.14271033,0.00026712,2]
[391190948,1760413833464,-401.6017,0.0002673,2]
[391190949,1760413833473,-800.0,0.00026805,2]
[391190952,1760413833483,-160.14271033,0.00026822,2]
[391190954,1760413833492,-31091.22237847,0.0002683,2]
[391190956,1760413833502,-543.57336834,0.0002683,2]
[391190958,1760413833514,-900.0,0.0002683,2]
[391190960,1760413833525,-4498.31984365,0.0002683,2]
[391190976,1760413833664,-2097.40455516,0.0002683,2]
[391190978,1760413833674,-150.48,0.0002683,2]
[391190980,1760413833683,-531.91,0.0002683,2]
[391190982,1760413833693,-151.28,0.0002683,2]
[391190984,1760413833702,-1000.0,0.00026849,7]
[391190986,1760413833711,-1000.0,0.00026849,7]
[391190988,1760413833721,-1000.0,0.00026849,7]
[391190990,1760413833732,-1000.0,0.00026849,7]
[391190992,1760413833741,-1000.0,0.00026849,7]
[391190994,1760413833750,-1000.0,0.00026849,7]
[391190996,1760413833759,-1000.0,0.00026849,7]
[391190998,1760413833769,-1000.0,0.00026849,7]
[391191000,1760413833778,-1000.0,0.00026849,7]
[391191002,1760413833788,-1000.0,0.00026849,7]
[391191004,1760413833797,-395.27271704,0.00026849,7]
[391191093,1760413837395,-604.72728296,0.00026849,7]
[391191094,1760413837409,-1000.0,0.00026849,7]
[391191095,1760413837426,-722.34669846,0.00026849,7]
[391191096,1760413837574,-277.65330154,0.00026849,7]
[391191097,1760413837587,-1000.0,0.00026849,7]
[391191098,1760413837600,-736.23195329,0.00026849,7]
[391191263,1760413839450,-303.94,0.0002295,2]
[391191265,1760413839461,-101.809847,0.00026849,7]
[391191655,1760413843203,-161.95819971,0.00026849,7]
[391191657,1760413843213,-1000.0,0.00026849,7]
[391191659,1760413843223,-1000.0,0.00026849,7]
[391191661,1760413843232,-1000.0,0.00026849,7]
[391191663,1760413843242,-1000.0,0.00026849,7]
[391191665,1760413843252,-1000.0,0.00026849,7]
[391191667,1760413843262,-1000.0,0.00026849,7]
[391191669,1760413843272,-840.93180029,0.00026849,7]
[391191688,1760413843446,-159.06819971,0.00026849,7]
[391191690,1760413843455,-34.76580029,0.00026849,7]
[391191910,1760413845624,-256.67,0.0002474,2]
[391191912,1760413845634,-965.23419971,0.00026849,7]
[391191914,1760413845644,-371.76756769,0.00026849,7]
[391195024,1760414506517,-153.28346837,0.00024742,48]
[391195025,1760414527517,1047.788116,7.945e-05,2]
[391195034,1760414686044,103.48233047,0.00024595,48]
[391195056,1760415031622,-161.58365799,0.00024395,47]
[391195057,1760415031631,-303.1,0.00024398,2]
[391195058,1760415031640,-132.05528495,0.00024494,2]
[391195059,1760415031651,-167.94471505,0.00024494,2]
[391195060,1760415031660,-272.62339479,0.00024495,2]
[391195061,1760415031674,-31.85660521,0.00024495,2]
[391195062,1760415031683,-401.74494263,0.00024495,2]
[391195063,1760415031694,-30.55505737,0.00024495,2]
[391195064,1760415031703,-438.21,0.00024495,2]
[391195065,1760415031712,-436.86,0.00024495,2]
[391195066,1760415031721,-443.9,0.00024495,2]
[391195067,1760415031731,-301.91,0.00024495,2]
[391195071,1760415031741,-443.28,0.00024495,2]
[391195078,1760415031908,-436.27,0.00024495,2]
[391195080,1760415031918,-441.84,0.00024495,2]
[391195082,1760415031927,-241.14574382,0.00024495,2]
[391195084,1760415031950,-198.72425618,0.00024495,2]
[391195086,1760415031958,-304.8,0.00024495,2]
[391195087,1760415031968,-432.32,0.00024495,2]
[391195090,1760415031978,-442.58,0.00024495,2]
[391195092,1760415031987,-442.46,0.00024495,2]
[391195095,1760415031997,-436.83,0.00024495,2]
[391195096,1760415032008,-303.8,0.00024495,2]
[391195099,1760415032017,-303.13,0.00024495,2]
[391195101,1760415032027,-302.05,0.00024495,2]
[391195103,1760415032036,-443.59,0.00024594,2]
[391195104,1760415032045,-429.23,0.00024594,2]
[391195106,1760415032055,-434.91,0.00024594,2]
[391195108,1760415032064,-258.20305389,0.00024595,2]
[391195110,1760415032073,-150.92,0.00024595,2]
[391195112,1760415032083,-444.22,0.00024595,2]
[391195114,1760415032093,-431.72,0.00024595,2]
[391195116,1760415032102,-441.14,0.00024595,2]
[391195118,1760415032111,-436.1,0.00024595,2]
[391195120,1760415032120,-301.42,0.00024595,2]
[391195122,1760415032130,-428.19,0.00024595,2]
[391195124,1760415032139,-428.36,0.00024595,2]
[391195126,1760415032148,-429.16,0.00024595,2]
[391195128,1760415032157,-433.69,0.00024595,2]
[391195130,1760415032166,-432.3,0.00024595,2]
[391195132,1760415032176,-437.1,0.00024595,2]
[391195134,1760415032185,-302.14,0.00024595,2]
[391195136,1760415032195,-430.9,0.00024595,2]
[391195138,1760415032205,-439.26,0.00024595,2]
[391195140,1760415032216,-434.74,0.00024595,2]
[391195142,1760415032226,-440.97,0.00024595,2]
[391195144,1760415032235,-302.19,0.00024595,2]
[391195146,1760415032245,-429.59,0.00024595,2]
[391195148,1760415032256,-304.72,0.00024595,2]
[391195150,1760415032265,-444.11,0.00024595,2]
[391195152,1760415032274,-443.62,0.00024595,2]
[391195154,1760415032284,-435.57,0.00024595,2]
[391195156,1760415032293,-430.55,0.00024595,2]
[391195158,1760415032302,-301.38,0.00024595,2]
[391195160,1760415032312,-436.19,0.00024595,2]
[391195162,1760415032321,-431.66,0.00024595,2]
[391195164,1760415032330,-431.68,0.00024595,2]
[391195166,1760415032339,-152.46,0.00024695,2]
[391195168,1760415032348,-152.78,0.00024695,2]
[391195170,1760415032357,-303.14,0.00024695,2]
[391195172,1760415032366,-150.08,0.00024695,2]
[391195174,1760415032375,-430.39,0.00024695,2]
[391195176,1760415032385,-435.16,0.00024695,2]
[391195178,1760415032394,-304.38,0.00024695,2]
[391195180,1760415032403,-439.3,0.00024695,2]
[391195182,1760415032412,-150.5,0.00024695,2]
[391195184,1760415032421,-427.72,0.00024695,2]
[391195186,1760415032430,-442.97,0.00024695,2]
[391195188,1760415032439,-437.35,0.00024695,2]
[391195190,1760415032449,-152.61,0.00024695,2]
[391195192,1760415032461,-301.58,0.00024695,2]
[391195194,1760415032476,-434.27,0.00024695,2]
[391195196,1760415032487,-433.26,0.00024695,2]
[391195198,1760415032495,-444.21,0.00024695,2]
[391195199,1760415032507,-428.22,0.00024695,2]
[391195202,1760415032517,-305.55,0.00024695,2]
[391195204,1760415032527,-151.56,0.00024695,2]
[391195205,1760415032537,-435.2,0.00024695,2]
[391195207,1760415032548,-428.08,0.00024695,2]
[391195209,1760415032557,-429.16,0.00024695,2]
[391195211,1760415032566,-437.29,0.00024695,2]
[391195213,1760415032575,-304.02,0.00024695,2]
[391195215,1760415032584,-440.66,0.00024695,2]
[391195217,1760415032594,-432.14,0.00024695,2]
[391195219,1760415032603,-439.51,0.00024695,2]
[391195221,1760415032612,-305.09,0.00024696,2]
[391195223,1760415032621,-442.64,0.00024697,2]
[391195225,1760415032630,-434.37,0.00024697,2]
[391195226,1760415032641,-436.6,0.00024697,2]
[391195227,1760415032650,-305.45,0.00024699,2]
[391195228,1760415032659,-438.73,0.000247,2]
[391195229,1760415032668,-434.73,0.000247,2]
[391195230,1760415032677,-432.25,0.00024705,2]
[391195231,1760415032687,-431.31,0.00024705,2]
[391195232,1760415032697,-434.36,0.00024705,2]
[391195233,1760415032707,-5000.0,0.00024728,2]
[391195234,1760415032719,-305.22,0.00024752,2]
[391195235,1760415032729,-1060.75,0.00024754,120]
[391195236,1760415032738,-150.23,0.00024755,2]
[391195237,1760415032747,-443.96,0.00024758,2]
[391195238,1760415032758,-428.08,0.00024758,2]
[391195239,1760415032767,-443.3,0.00024758,2]
[391195240,1760415032776,-304.92,0.00024773,2]
[391195241,1760415032785,-150.0,0.00024795,2]
[391195242,1760415032795,-300.08,0.00024795,2]
[391195243,1760415032804,-430.18,0.00024795,2]
[391195244,1760415032813,-150.95,0.00024795,2]
[391195245,1760415032823,-437.59,0.00024795,2]
[391195246,1760415032832,-443.11,0.00024795,2]
[391195247,1760415032841,-302.28,0.00024795,2]
[391195248,1760415032851,-151.86,0.00024795,2]
[391195249,1760415032860,-473.09,0.00024819,30]
[391195250,1760415032870,-151.24,0.0002482,2]
[391195251,1760415032880,-301.72,0.0002482,2]
[391195252,1760415032890,-429.94,0.0002482,2]
[391195253,1760415032901,-301.31,0.00024821,2]
[391195254,1760415032910,-438.77,0.00024821,2]
[391195255,1760415032921,-428.09,0.00024822,2]
[391195256,1760415032932,-436.0,0.00024822,2]
[391195257,1760415032942,-442.34,0.00024822,2]
[391195258,1760415032951,-161.58365797,0.00024876,48]
[391195259,1760415032960,-430.24,0.0002492,2]
[391195260,1760415032970,-304.98,0.0002492,2]
[391195261,1760415032979,-440.5,0.0002492,2]
[391195262,1760415032988,-430.24,0.0002492,2]
[391195263,1760415032997,-443.83,0.0002492,2]
[391195264,1760415033008,-428.35,0.0002492,2]
[391195265,1760415033018,-302.48,0.0002492,2]
[391195266,1760415033027,-429.9,0.0002492,2]
[391195267,1760415033037,-438.25,0.0002492,2]
[391195268,1760415033046,-430.72,0.0002492,2]
[391195269,1760415033056,-440.37,0.0002492,2]
[391195270,1760415033066,-301.52,0.0002492,2]
[391195271,1760415033076,-438.49,0.0002492,2]
[391195272,1760415033086,-434.93,0.0002492,2]
[391195273,1760415033096,-443.13,0.0002492,2]
[391195274,1760415033106,-433.64,0.0002492,2]
[391195275,1760415033116,-303.36,0.0002492,2]
[391195276,1760415033125,-431.83,0.0002492,2]
[391195277,1760415033135,-440.11,0.0002492,2]
[391195278,1760415033144,-301.39,0.0002492,2]
[391195279,1760415033155,-440.93,0.0002492,2]
[391195280,1760415033164,-432.52,0.0002492,2]
[391195281,1760415033173,-433.86,0.0002492,2]
[391195282,1760415033183,-302.75,0.0002492,2]
[391195283,1760415033192,-304.41,0.00024922,2]
[391195284,1760415033201,-500.0,0.00024932,2]
[391195285,1760415033211,-303.21,0.00024947,2]
[391195286,1760415033220,-223.39,0.00024992,2]
[391195287,1760415033230,-514.85,0.0002502,2]
[391195288,1760415033239,-514.85,0.0002502,2]
[391195289,1760415033249,-533.03,0.00025103,2]
[391195290,1760415033260,-526.4,0.00025103,2]
[391195291,1760415033269,-523.03,0.00025268,2]
[391195292,1760415033278,-387.30458085,0.00025335,3]
[391195293,1760415033288,-161.58365797,0.00025357,49]
[391195294,1760415033298,-530.03,0.00025585,2]
[391195295,1760415033307,-1543.313,0.00025585,10]
[391195296,1760415033317,-721.12765535,0.00025682,2]
[391195297,1760415033326,-277.35679052,0.00025682,2]
[391195298,1760415033336,-322.6107,0.00025682,2]
[391195299,1760415033346,-150.0,0.00025805,2]
[391195300,1760415033357,-161.58365797,0.00025838,50]
[391195301,1760415033367,-310.66,0.00026039,120]
[391195302,1760415033377,-258.2030539,0.00026075,4]
[391195303,1760415033387,-666.0,0.00026075,3]
[391195304,1760415033398,-780.0,0.00026076,7]
[391195305,1760415033407,-168.0,0.00026081,2]
[391195306,1760415033416,-161.58365797,0.00026319,52]
[391195307,1760415033425,-288.0,0.00026383,7]
[391195308,1760415033435,-684.125,0.00026446,2]
[391195309,1760415033444,-6461.999,0.00026446,2]
[391195310,1760415033454,-4014.0,0.00026446,2]
[391195311,1760415033466,-546.15,0.00026575,2]
[391195312,1760415033476,-168.0,0.00026668,2]
[391195313,1760415033486,-150.99,0.00026749,2]
[391195314,1760415033496,-152.84,0.00026749,2]
[391195315,1760415033508,-151.92,0.00026749,2]
[391195316,1760415033518,-150.94,0.00026749,2]
[391195317,1760415033528,-152.12,0.00026749,2]
[391195318,1760415033540,-150.21,0.00026749,2]
[391195319,1760415033550,-151.35,0.00026749,2]
[391195320,1760415033560,-531.6,0.00026749,2]
[391195321,1760415033569,-151.27,0.00026749,2]
[391195322,1760415033579,-534.66,0.00026749,2]
[391195323,1760415033589,-515.02,0.00026749,2]
[391195324,1760415033599,-517.75,0.00026749,2]
[391195325,1760415033608,-514.51,0.00026749,2]
[391195326,1760415033618,-514.86,0.00026753,2]
[391195327,1760415033628,-399.57812001,0.00026781,2]
[391195328,1760415033638,-182.76076996,0.000268,2]
[391195329,1760415033647,-195.03516087,0.000268,2]
[391195330,1760415033656,-1189.5787617,0.000268,2]
[391195331,1760415033666,-161.58365797,0.000268,53]
[391195332,1760415033675,-1000.0,0.000268,2]
[391195333,1760415033685,-3160.3332517,0.00026801,2]
[391195334,1760415033695,-3065.0554636,0.00026801,2]
[391195335,1760415033705,-500.0,0.00026803,2]
[391195336,1760415033715,-301.23689622,0.00026815,6]
[391195337,1760415033724,-528.86,0.0002682,2]
[391195338,1760415033734,-168.0,0.00026829,2]
[391195339,1760415033743,-1286.6673,0.0002683,2]
[391195340,1760415033752,-168.0,0.00026844,2]
[391195341,1760415033768,-500.0,0.00026844,2]
[391195342,1760415033777,-500.0,0.00026845,7]
[391195343,1760415033787,-500.0,0.00026846,7]
[391195344,1760415033797,-500.0,0.00026847,7]
[391195345,1760415033807,-500.0,0.00026848,7]
[391195346,1760415033816,-500.0,0.00026849,7]
[391195347,1760415033825,-151.0,0.00026849,7]
[391195348,1760415033835,-628.23243231,0.00026849,7]
[391195349,1760415033844,-1000.0,0.00026849,7]
[391195350,1760415033853,-1000.0,0.00026849,7]
[391195351,1760415033863,-1000.0,0.00026849,7]
[391195352,1760415033872,-1000.0,0.00026849,7]
[391195353,1760415033882,-1000.0,0.00026849,7]
[391195354,1760415033892,-1623.16929491,0.00026849,7]
[391195355,1760415033901,-514.52,0.00026849,2]
[391195356,1760415033911,-151.23,0.00026849,2]
[391195357,1760415033920,-151.12,0.00026849,2]
[391195358,1760415033929,-195.03516081,0.00026855,2]
[391195359,1760415033939,-800.0,0.00026868,7]
[391195360,1760415033948,-182.76076994,0.00026871,2]
[391195361,1760415033958,-501.58350115,0.00026873,2]
[391195362,1760415033967,-151.213258,0.00026873,7]
[391195363,1760415033976,-3472.51708575,0.00026877,2]
[391195364,1760415033986,-2500.0,0.00026881,2]
[391195365,1760415033995,-180.92508941,0.0002689,2]
[391195366,1760415034005,-151.0,0.0002689,7]
[391195367,1760415034017,-151.478552,0.0002689,7]
[391195368,1760415034026,-151.0,0.0002689,7]
[391195369,1760415034035,-151.0,0.0002689,7]
[391195370,1760415034044,-164.42511318,0.0002689,7]
[391195371,1760415034053,-151.0,0.0002689,7]
[391195372,1760415034063,-151.0,0.0002689,7]
[391195373,1760415034072,-151.792485,0.0002689,7]
[391195374,1760415034081,-151.0,0.0002689,7]
[391195375,1760415034090,-151.0,0.0002689,7]
[391195376,1760415034099,-500.0,0.00026898,2]
[391195377,1760415034108,-462.47968706,0.00026898,2]
[391195378,1760415034117,-500.0,0.00026898,2]
[391195379,1760415034126,-305.67944826,0.00026899,10]
[391195380,1760415034135,-151.0,0.00026899,7]
[391195381,1760415034144,-151.0,0.00026899,7]
[391195382,1760415034153,-5000.0,0.00026899,2]
[391195383,1760415034163,-1271.9123,0.00026899,2]
[391195384,1760415034172,-177.08360632,0.000269,2]
[391195385,1760415034181,-161.06964973,0.000269,2]
[391195386,1760415034190,-76593.4,0.000269,2]
[391195387,1760415034199,-151.0,0.000269,7]
[391195388,1760415034209,-267.446978,0.000269,7]
[391195390,1760415034218,-151.0,0.000269,7]
[391195391,1760415034228,-151.0,0.000269,7]
[391195392,1760415034238,-301.99999951,0.000269,7]
[391195393,1760415034248,-151.0,0.000269,7]
[391195395,1760415034262,-151.0,0.000269,7]
[391195396,1760415034272,-151.0,0.000269,7]
[391195397,1760415034282,-151.0,0.000269,7]
[391195398,1760415034292,-151.0,0.000269,7]
[391195399,1760415034301,-151.0,0.000269,7]
[391195400,1760415034311,-159.280559,0.000269,7]
[391195401,1760415034322,-195.03516081,0.0002691,2]
[391195402,1760415034331,-182.76076994,0.00026942,2]
[391195403,1760415034341,-151.1,0.00026947,2]
[391195404,1760415034351,-160.14271033,0.00026959,2]
[391195405,1760415034361,-195.03516081,0.00026966,2]
[391195406,1760415034370,-502.69534853,0.00026973,2]
[391195407,1760415034380,-500.0,0.00026973,2]
[391195408,1760415034389,-428.44426241,0.00026988,2]
[391195409,1760415034399,-666.0,0.00026988,2]
[391195410,1760415034410,-666.0,0.00026988,2]
[391195411,1760415034420,-151.0,0.00026989,7]
[391195412,1760415034429,-151.0,0.00026989,7]
[391195413,1760415034439,-155.502775,0.00026989,7]
[391195414,1760415034448,-151.0,0.00026989,7]
[391195415,1760415034461,-151.0,0.0002699,7]
[391195416,1760415034471,-151.0,0.0002699,7]
[391195417,1760415034480,-162.338617,0.0002699,7]
[391195418,1760415034489,-151.0,0.0002699,7]
[391195419,1760415034499,-151.0,0.0002699,7]
[391195420,1760415034510,-151.0,0.0002699,7]
[391195421,1760415034519,-175.857142,0.0002699,7]
[391195422,1760415034529,-3000.0,0.00026998,7]
[391195423,1760415034539,-500.0,0.00026998,20]
[391195424,1760415034550,-500.0,0.00026998,20]
[391195425,1760415034559,-500.0,0.00026998,20]
[391195426,1760415034569,-562.40071734,0.00026998,20]
[391195427,1760415034578,-666.0,0.00026998,2]
[391195428,1760415034588,-666.0,0.00026999,2]
[391195429,1760415034598,-763.18535039,0.00026999,2]
[391195430,1760415034608,-369.37560776,0.00026999,2]
[391195431,1760415034618,-151.0,0.00026999,7]
[391195432,1760415034629,-177.0836063,0.00026999,2]
[391195433,1760415034640,-3826.0,0.00026999,2]
[391195434,1760415034650,-113122.12304311,0.00027,2]
[391195435,1760415034659,-152.09,0.00027,2]